[Event "Asian Zonal 3.2 Women 2019"]
[Site "Dhaka"]
[Date "2019.03.20"]
[Round "4.12"]
[White "Khan, Nazrana"]
[Black "Kiswara, Shajrin Evana"]
[Result "1-0"]
[ECO "D45"]
[WhiteElo "1948"]
[BlackElo "1615"]
[Annotator "NA RC"]
[PlyCount "121"]
[EventDate "2019.03.14"]
[EventType "swiss"]
[EventCountry "BAN"]
[SourceTitle "playchess.com"]
[Source "ChessBase"]
[SourceQuality "1"]
[TimeControl "5400+30"]

1. d4 {[%emt 0:00:00]} d5 {[%emt 0:00:00]} 2. c4 {[%emt 0:00:00]} e6 {[%emt 0:00:30]} 3. Nc3 {[%emt 0:00:00]} dxc4 {[%emt 0:01:43]} 4. Nf3 {[%emt 0:02:10]} Nf6 {[%emt 0:01:23]} 5. e3 {[%emt 0:00:43]} c5 {[%emt 0:04:34]} 6. Bxc4 {[%emt 0:00:47]} Be7 {[%emt 0:03:07]} 7. O-O {[%emt 0:01:04]} O-O {[%emt 0:00:28]} 8. Ne5 {[%emt 0:06:04]} a6 {[%emt 0:02:08]} 9. Qf3 {[%emt 0:11:17]} Qc7 {[%emt 0:03:55]} 10. Bd3 {[%emt 0:10:04]} Nbd7 {[%emt 0:04:46]} 11. Nxd7 {[%emt 0:08:04]} Bxd7 {[%emt 0:01:12]} 12. dxc5 {[%emt 0:06:42]} Bxc5 {[%emt 0:02:23]} 13. e4 {[%emt 0:03:32]} Bd6 {[%emt 0:00:56]} 14. h3 {[%emt 0:01:33]} Bc6 {[%emt 0:03:11]} 15. Bg5 {[%emt 0:02:35]} Be5 {[%emt 0:01:50]} 16. Rac1 {[%emt 0:03:09]} Qa5 {[%emt 0:01:26]} 17. Bh4 {[%emt 0:08:21]} Nd7 {[%emt 0:05:54]} 18. Qe2 {[%emt 0:02:28]} Nc5 {[%emt 0:01:37]} 19. Bb1 {[%emt 0:03:46]} Na4 {[%emt 0:08:38]} 20. Qe3 {[%emt 0:04:22]} Qb6 {[%emt 0:02:24]} 21. Qxb6 {[%emt 0:03:55]} Nxb6 {[%emt 0:00:21]} 22. Be7 {[%emt 0:02:18]} Rfe8 {[%emt 0:00:38]} 23. Bc5 {[%emt 0:00:23]} Nc4 {[%emt 0:00:34]} 24. f4 {[%emt 0:01:01]} Bxc3 {[%emt 0:04:04]} 25. bxc3 {[%emt 0:01:18]} Nd2 {[%emt 0:01:36]} 26. Rfe1 {[%emt 0:01:01]} Nxb1 {[%emt 0:00:41]} 27. Rxb1 {[%emt 0:00:12]} Rad8 {[%emt 0:01:04]} 28. Bd4 {[%emt 0:00:40]} f5 {[%emt 0:01:56]} 29. e5 {[%emt 0:00:47]} Bd5 {[%emt 0:01:06]} 30. a4 {[%emt 0:00:34]} Rc8 {[%emt 0:00:34]} 31. a5 {[%emt 0:00:45]} Rc4 {[%emt 0:00:57]} 32. Ra1 {[%emt 0:01:29]} h6 {[%emt 0:02:09]} 33. Kf2 {[%emt 0:00:48]} Kf7 {[%emt 0:00:45]} 34. g4 {[%emt 0:02:19]} fxg4 {[%emt 0:02:45]} 35. hxg4 {[%emt 0:00:10]} g6 {[%emt 0:01:23]} 36. Kg3 {[%emt 0:00:39]} Rg8 {[%emt 0:00:35]} 37. Reb1 {[%emt 0:01:17]} Bc6 {[%emt 0:02:51]} 38. Rb2 {[%emt 0:00:22]} Rd8 {[%emt 0:02:32]} 39. Rd2 {[%emt 0:00:33]} Rd5 {[%emt 0:00:52]} 40. Rh2 {[%emt 0:00:00]} Kg7 {[%emt 0:00:00]} 41. Rd2 {[%emt 0:00:00]} Ra4 {[%emt 0:00:00]} 42. Rxa4 {[%emt 0:00:00]} Bxa4 {[%emt 0:00:00]} 43. f5 {[%emt 0:00:00]} gxf5 {[%emt 0:00:00]} 44. gxf5 {[%emt 0:00:00]} exf5 {[%emt 0:00:00]} 45. Kf4 {[%emt 0:00:00]} Kg6 {[%emt 0:00:00]} 46. e6 {[%emt 0:00:00]} h5 {[%emt 0:00:00]} 47. Rg2+ {[%emt 0:00:00]} Kh6 {[%emt 0:00:00]} 48. Bg7+ {[%emt 0:00:00]} Kh7 {[%emt 0:00:00]} 49. Be5 {[%emt 0:00:00]} Bc6 {[%emt 0:02:58]} 50. Rg7+ {[%emt 0:00:00]} Kh6 {[%emt 0:00:20]} 51. Rg8 {[%emt 0:00:00]} Rxa5 {[%emt 0:01:52]} 52. Kxf5 {[%emt 0:00:00]} Rxe5+ {[%emt 0:05:04]} 53. Kxe5 {[%emt 0:00:00]} Kh7 {[%emt 0:00:25]} 54. Rf8 {[%emt 0:00:00]} Kg7 {[%emt 0:00:27]} 55. e7 {[%emt 0:00:00]} h4 {[%emt 0:02:23]} 56. e8=Q {[%emt 0:00:00]} Bxe8 {[%emt 0:00:04]} 57. Rxe8 {[%emt 0:00:00]} h3 {[%emt 0:00:22]} 58. Re7+ {[%emt 0:00:00]} Kg6 {[%emt 0:00:32]} 59. Rxb7 {[%emt 0:00:00]} Kg5 {[%emt 0:00:37]} 60. Rg7+ {[%emt 0:22:48]} Kh6 {[%emt 0:01:28]} 61. Rg3 {[%emt 0:00:30]} 1-0

[Event "Asian Zonal 3.2 Women 2019"]
[Site "Dhaka"]
[Date "2019.03.20"]
[Round "5.9"]
[White "Parveen, Seyda Shabana"]
[Black "Noshin, Anjum"]
[Result "1/2-1/2"]
[ECO "D11"]
[WhiteElo "2073"]
[BlackElo "1722"]
[Annotator "NA RC"]
[PlyCount "99"]
[EventDate "2019.03.14"]
[EventType "swiss"]
[EventCountry "BAN"]
[SourceTitle "playchess.com"]
[Source "ChessBase"]
[SourceQuality "1"]
[TimeControl "5400+30"]

1. d4 {[%emt 0:00:03]} d5 {[%emt 0:00:00]} 2. Nf3 {[%emt 0:00:12]} Nf6 {[%emt 0:00:05]} 3. g3 {[%emt 0:00:21]} c6 {[%emt 0:00:09]} 4. Bg2 {[%emt 0:00:07]} Bf5 {[%emt 0:00:05]} 5. O-O {[%emt 0:00:23]} e6 {[%emt 0:00:08]} 6. b3 {[%emt 0:00:48]} Nbd7 {[%emt 0:00:21]} 7. Bb2 {[%emt 0:00:16]} h6 {[%emt 0:00:14]} 8. Nbd2 {[%emt 0:00:19]} Be7 {[%emt 0:01:40]} 9. c4 {[%emt 0:00:20]} O-O {[%emt 0:00:28]} 10. Ne5 {[%emt 0:04:06]} a5 {[%emt 0:01:25]} 11. a3 {[%emt 0:01:53]} Ne4 {[%emt 0:07:14]} 12. Nxe4 {[%emt 0:09:29]} dxe4 {[%emt 0:00:59]} 13. Nxd7 {[%emt 0:01:05]} Qxd7 {[%emt 0:00:09]} 14. e3 {[%emt 0:00:07]} Bh7 {[%emt 0:07:05]} 15. Qe2 {[%emt 0:02:36]} Rfd8 {[%emt 0:09:01]} 16. Rfd1 {[%emt 1:15:55]} Qc7 {[%emt 0:02:12]} 17. Rac1 {[%emt 0:00:00]} Qb6 {[%emt 0:05:35]} 18. Qc2 {[%emt 0:00:00]} f5 {[%emt 0:00:30]} 19. Rd2 {[%emt 0:00:00]} Rac8 {[%emt 0:05:03]} 20. Qd1 {[%emt 0:00:00]} Bf6 {[%emt 0:06:07]} 21. Bf1 {[%emt 0:00:00]} Rd7 {[%emt 0:07:35]} 22. Bc3 {[%emt 0:00:00]} Qd8 {[%emt 0:06:00]} 23. b4 {[%emt 0:00:00]} axb4 {[%emt 0:03:06]} 24. axb4 {[%emt 0:00:00]} Qe8 {[%emt 0:05:00]} 25. c5 {[%emt 0:00:00]} Rdd8 {[%emt 0:14:31]} 26. Qb3 {[%emt 0:00:00]} Bg6 {[%emt 0:01:07]} 27. b5 {[%emt 0:00:00]} Bf7 {[%emt 0:05:56]} 28. Ba5 {[%emt 0:00:00]} Rd7 {[%emt 0:00:51]} 29. Bc4 {[%emt 0:00:00]} e5 {[%emt 0:05:01]} 30. dxe5 {[%emt 0:00:00]} Rxd2 {[%emt 0:00:25]} 31. Bxf7+ {[%emt 0:00:00]} Qxf7 {[%emt 0:00:09]} 32. e6 {[%emt 0:00:00]} Qe7 {[%emt 0:00:28]} 33. Bxd2 {[%emt 0:00:00]} cxb5 {[%emt 0:01:30]} 34. Qxb5 {[%emt 0:00:00]} Rc6 {[%emt 0:00:42]} 35. Bb4 {[%emt 0:00:05]} Rxe6 {[%emt 0:04:23]} 36. Qc4 {[%emt 0:02:35]} Qd7 {[%emt 0:01:44]} 37. Kg2 {[%emt 0:00:18]} Kh7 {[%emt 0:00:13]} 38. Qb3 {[%emt 0:01:35]} Be5 {[%emt 0:01:03]} 39. Rd1 {[%emt 0:00:16]} Qc6 {[%emt 0:00:09]} 40. Rd5 {[%emt 0:00:00]} b6 {[%emt 0:00:00]} 41. Qc4 {[%emt 0:00:00]} bxc5 {[%emt 0:00:00]} 42. Rxc5 {[%emt 0:00:00]} Qd7 {[%emt 0:00:00]} 43. Rd5 {[%emt 0:00:00]} Qe8 {[%emt 0:00:00]} 44. h3 {[%emt 0:00:00]} Qh5 {[%emt 0:00:00]} 45. Rd2 {[%emt 0:00:00]} Qg6 {[%emt 0:00:00]} 46. Qc8 {[%emt 0:00:00]} Re8 {[%emt 0:00:00]} 47. Qd7 {[%emt 0:00:00]} Qe6 {[%emt 0:00:00]} 48. Qa4 {[%emt 0:00:00]} Rc8 {[%emt 0:00:00]} 49. Qd1 {[%emt 0:00:00]} Rb8 {[%emt 0:00:00]} 50. Bc5 {[%emt 0:00:35]} 1/2-1/2

[Event "Asian Zonal 3.2 Women 2019"]
[Site "Dhaka"]
[Date "2019.03.20"]
[Round "5.10"]
[White "Jannatul, Ferdous"]
[Black "Parveen, Tanima"]
[Result "0-1"]
[ECO "C50"]
[WhiteElo "1704"]
[BlackElo "1990"]
[Annotator "NA RC"]
[PlyCount "90"]
[EventDate "2019.03.14"]
[EventType "swiss"]
[EventCountry "BAN"]
[SourceTitle "playchess.com"]
[Source "ChessBase"]
[SourceQuality "1"]
[TimeControl "5400+30"]

1. e4 {[%emt 0:00:00]} e5 {[%emt 0:00:15]} 2. Nf3 {[%emt 0:00:08]} Nc6 {[%emt 0:00:08]} 3. d4 {[%emt 0:01:02]} exd4 {[%emt 0:00:31]} 4. Bc4 {[%emt 0:00:40]} Nf6 {[%emt 0:00:40]} 5. O-O {[%emt 0:01:11]} d6 {[%emt 0:02:14]} 6. Nxd4 {[%emt 0:01:02]} Be7 {[%emt 0:01:15]} 7. Nxc6 {[%emt 0:01:42]} bxc6 {[%emt 0:01:33]} 8. Nc3 {[%emt 0:00:30]} O-O {[%emt 0:00:31]} 9. Re1 {[%emt 0:00:29]} Ng4 {[%emt 0:05:01]} 10. h3 {[%emt 0:01:15]} Ne5 {[%emt 0:01:54]} 11. Bb3 {[%emt 0:00:43]} Bf6 {[%emt 0:02:03]} 12. f4 {[%emt 0:13:32]} Ng6 {[%emt 0:08:41]} 13. Qd3 {[%emt 0:03:57]} a5 {[%emt 0:06:45]} 14. Bc4 {[%emt 0:00:45]} Bb7 {[%emt 0:05:56]} 15. Be3 {[%emt 0:04:11]} Re8 {[%emt 0:07:04]} 16. Rab1 {[%emt 0:03:39]} Qc8 {[%emt 0:06:53]} 17. Rf1 {[%emt 0:13:40]} Bxc3 {[%emt 0:04:43]} 18. bxc3 {[%emt 0:00:04]} d5 {[%emt 0:00:39]} 19. exd5 {[%emt 0:09:19]} cxd5 {[%emt 0:00:11]} 20. Bb5 {[%emt 0:01:33]} c6 {[%emt 0:00:15]} 21. Ba4 {[%emt 0:00:14]} Ba6 {[%emt 0:00:22]} 22. Qd4 {[%emt 0:01:24]} Bxf1 {[%emt 0:00:15]} 23. Rxf1 {[%emt 0:00:05]} Re4 {[%emt 0:00:10]} 24. Qc5 {[%emt 0:03:30]} Rxa4 {[%emt 0:00:37]} 25. f5 {[%emt 0:00:31]} Ne5 {[%emt 0:05:36]} 26. f6 {[%emt 0:01:48]} Nd7 {[%emt 0:06:14]} 27. Qd6 {[%emt 0:02:10]} Nxf6 {[%emt 0:01:01]} 28. Bd4 {[%emt 0:00:56]} Qe6 {[%emt 0:06:32]} 29. Qg3 {[%emt 0:02:10]} Rxd4 {[%emt 0:02:31]} 30. cxd4 {[%emt 0:00:22]} Re8 {[%emt 0:00:15]} 31. Kh2 {[%emt 0:02:17]} Ne4 {[%emt 0:02:55]} 32. Qh4 {[%emt 0:03:05]} Qd6+ {[%emt 0:02:21]} 33. Kg1 {[%emt 0:01:41]} Qg3 {[%emt 0:03:16]} 34. Qh5 {[%emt 0:02:24]} Qe3+ {[%emt 0:01:22]} 35. Kh2 {[%emt 0:00:44]} g6 {[%emt 0:02:48]} 36. Qg4 {[%emt 0:01:59]} Qxd4 {[%emt 0:02:04]} 37. Qd7 {[%emt 0:01:34]} Qe5+ {[%emt 0:00:06]} 38. Kg1 {[%emt 0:00:18]} Qe6 {[%emt 0:00:10]} 39. Qa7 {[%emt 0:01:13]} Ng3 {[%emt 0:01:24]} 40. Rf2 {[%emt 0:00:00]} h5 {[%emt 0:00:00]} 41. Kh2 {[%emt 0:00:00]} h4 {[%emt 0:00:00]} 42. Qb7 {[%emt 0:00:00]} Re7 {[%emt 0:00:00]} 43. Qb8+ {[%emt 0:00:00]} Kg7 {[%emt 0:00:00]} 44. Qb2+ {[%emt 0:00:00]} Qe5 {[%emt 0:00:00]} 45. Rxf7+ {[%emt 0:00:00]} Kxf7 {[%emt 0:00:00]} 0-1

[Event "Asian Zonal 3.2 Women 2019"]
[Site "Dhaka"]
[Date "2019.03.20"]
[Round "5.11"]
[White "Sultana, Sharmin Shirin"]
[Black "Sultana, Zakia"]
[Result "1-0"]
[ECO "D52"]
[WhiteElo "1981"]
[BlackElo "1826"]
[Annotator "NA RC"]
[PlyCount "147"]
[EventDate "2019.03.14"]
[EventType "swiss"]
[EventCountry "BAN"]
[SourceTitle "playchess.com"]
[Source "ChessBase"]
[SourceQuality "1"]
[TimeControl "5400+30"]

1. d4 {[%emt 0:00:00]} d5 {[%emt 0:00:00]} 2. c4 {[%emt 0:00:00]} e6 {[%emt 0:00:00]} 3. Nc3 {[%emt 0:00:05]} Nf6 {[%emt 0:00:04]} 4. Bg5 {[%emt 0:00:34]} c6 {[%emt 0:01:09]} 5. e3 {[%emt 0:01:44]} Nbd7 {[%emt 0:00:24]} 6. Nf3 {[%emt 0:01:31]} Qa5 {[%emt 0:01:26]} 7. cxd5 {[%emt 0:03:54]} exd5 {[%emt 0:04:06]} 8. Bd3 {[%emt 0:08:32]} Be7 {[%emt 0:02:12]} 9. O-O {[%emt 0:00:40]} O-O {[%emt 0:02:23]} 10. a3 {[%emt 0:08:52]} Re8 {[%emt 0:00:55]} 11. Qc2 {[%emt 0:01:51]} Nf8 {[%emt 0:01:13]} 12. h3 {[%emt 0:00:52]} Qd8 {[%emt 0:01:29]} 13. b4 {[%emt 0:02:20]} a6 {[%emt 0:03:22]} 14. Rab1 {[%emt 0:00:48]} Ne4 {[%emt 0:02:43]} 15. Bf4 {[%emt 0:01:33]} Nxc3 {[%emt 0:03:54]} 16. Qxc3 {[%emt 0:00:06]} Bd6 {[%emt 0:00:50]} 17. Bxd6 {[%emt 0:05:09]} Qxd6 {[%emt 0:02:56]} 18. Rfc1 {[%emt 0:05:31]} Bd7 {[%emt 0:04:39]} 19. Ne5 {[%emt 0:02:12]} Be6 {[%emt 0:03:01]} 20. Qc5 {[%emt 0:08:28]} Qe7 {[%emt 0:03:31]} 21. Qxe7 {[%emt 0:00:21]} Rxe7 {[%emt 0:00:12]} 22. a4 {[%emt 0:00:28]} f6 {[%emt 0:00:45]} 23. Nf3 {[%emt 0:00:33]} Bd7 {[%emt 0:05:30]} 24. Nd2 {[%emt 0:02:28]} g6 {[%emt 0:05:39]} 25. Nb3 {[%emt 0:01:34]} Ne6 {[%emt 0:06:33]} 26. Rc3 {[%emt 0:13:43]} f5 {[%emt 0:02:31]} 27. Nc5 {[%emt 0:02:27]} Be8 {[%emt 0:04:12]} 28. g3 {[%emt 0:07:16]} Ng5 {[%emt 0:08:48]} 29. h4 {[%emt 0:02:27]} Ne4 {[%emt 0:02:24]} 30. Rcc1 {[%emt 0:03:39]} Nd6 {[%emt 0:02:24]} 31. Kg2 {[%emt 0:00:14]} Kg7 {[%emt 0:03:47]} 32. Rh1 {[%emt 0:03:10]} Kf6 {[%emt 0:02:04]} 33. Be2 {[%emt 0:00:47]} h5 {[%emt 0:00:34]} 34. Rhc1 {[%emt 0:00:35]} Kg7 {[%emt 0:04:09]} 35. Nd3 {[%emt 0:01:18]} Nc4 {[%emt 0:02:02]} 36. Nf4 {[%emt 0:01:12]} b5 {[%emt 0:00:45]} 37. Ra1 {[%emt 0:03:28]} Rea7 {[%emt 0:02:30]} 38. Nd3 {[%emt 0:01:41]} Kf6 {[%emt 0:05:03]} 39. Nc5 {[%emt 0:00:49]} Nb6 {[%emt 0:02:10]} 40. Bf3 {[%emt 0:00:00]} Ke7 {[%emt 0:00:00]} 41. a5 {[%emt 0:00:00]} Nc4 {[%emt 0:00:00]} 42. Rc2 {[%emt 0:00:00]} Kd6 {[%emt 0:00:00]} 43. Kf1 {[%emt 0:00:00]} Re7 {[%emt 0:00:00]} 44. Ke2 {[%emt 0:00:00]} Raa7 {[%emt 0:00:00]} 45. Bg2 {[%emt 0:00:00]} Bf7 {[%emt 0:00:00]} 46. Kd3 {[%emt 0:00:00]} Bg8 {[%emt 0:00:00]} 47. Re2 {[%emt 0:00:00]} Kc7 {[%emt 0:00:00]} 48. Kc3 {[%emt 0:00:00]} Ra8 {[%emt 0:00:00]} 49. Rae1 {[%emt 0:00:00]} Kb8 {[%emt 0:00:00]} 50. f3 {[%emt 0:00:00]} Ka7 {[%emt 0:00:00]} 51. e4 {[%emt 0:00:00]} Rae8 {[%emt 0:00:00]} 52. Nd3 {[%emt 0:00:52]} Nd6 {[%emt 0:00:00]} 53. e5 {[%emt 0:00:38]} Nc4 {[%emt 0:00:00]} 54. Nf4 {[%emt 0:00:29]} Rg7 {[%emt 0:00:00]} 55. e6 {[%emt 0:01:18]} Ree7 {[%emt 0:00:00]} 56. Bh3 {[%emt 0:00:57]} Nd6 {[%emt 0:00:00]} 57. Nd3 {[%emt 0:01:48]} Bh7 {[%emt 0:00:00]} 58. Nf4 {[%emt 0:01:14]} Rg8 {[%emt 0:00:00]} 59. Rf2 {[%emt 0:01:00]} Rge8 {[%emt 0:00:00]} 60. Bf1 {[%emt 0:00:03]} Rf8 {[%emt 0:00:56]} 61. Bd3 {[%emt 0:00:03]} Rf6 {[%emt 0:00:21]} 62. Rfe2 {[%emt 0:02:28]} Bg8 {[%emt 0:00:41]} 63. Re5 {[%emt 0:01:35]} Kb7 {[%emt 0:02:20]} 64. Rf1 {[%emt 0:00:32]} Nc4 {[%emt 0:02:42]} 65. Ree1 {[%emt 0:01:04]} Kc7 {[%emt 0:00:36]} 66. g4 {[%emt 0:00:06]} hxg4 {[%emt 0:01:22]} 67. fxg4 {[%emt 0:00:11]} Kd6 {[%emt 0:00:49]} 68. g5 {[%emt 0:00:40]} Rfxe6 {[%emt 0:01:17]} 69. Nxe6 {[%emt 0:00:34]} Bxe6 {[%emt 0:00:29]} 70. h5 {[%emt 0:01:14]} Rg7 {[%emt 0:04:27]} 71. hxg6 {[%emt 0:00:40]} Kd7 {[%emt 0:00:35]} 72. Rh1 {[%emt 0:00:55]} Rxg6 {[%emt 0:00:20]} 73. Rh7+ {[%emt 0:00:13]} Kd6 {[%emt 0:00:42]} 74. Rh6 {[%emt 0:05:34] Ke5 [%clk 0:00:00]} 1-0

[Event "Asian Zonal 3.2 Women 2019"]
[Site "Dhaka"]
[Date "2019.03.20"]
[Round "5.12"]
[White "Ranasinghe, S D"]
[Black "Khan, Nazrana"]
[Result "0-1"]
[ECO "A12"]
[WhiteElo "1829"]
[BlackElo "1948"]
[Annotator "NA RC"]
[PlyCount "210"]
[EventDate "2019.03.14"]
[EventType "swiss"]
[EventCountry "BAN"]
[SourceTitle "playchess.com"]
[Source "ChessBase"]
[SourceQuality "1"]
[TimeControl "5400+30"]

1. Nf3 {[%emt 0:00:00]} d5 {[%emt 0:00:05]} 2. e3 {[%emt 0:00:05]} c6 {[%emt 0:01:55]} 3. c4 {[%emt 0:00:08]} Nf6 {[%emt 0:02:12]} 4. b3 {[%emt 0:00:12]} Bf5 {[%emt 0:07:52]} 5. Nc3 {[%emt 0:00:27]} e6 {[%emt 0:00:41]} 6. Bb2 {[%emt 0:00:11]} Nbd7 {[%emt 0:02:13]} 7. d4 {[%emt 0:03:39]} Be7 {[%emt 0:01:51]} 8. Be2 {[%emt 0:00:11]} h6 {[%emt 0:01:05]} 9. Bd3 {[%emt 0:00:28]} Bxd3 {[%emt 0:07:42]} 10. Qxd3 {[%emt 0:00:08]} O-O {[%emt 0:03:06]} 11. O-O {[%emt 0:00:03]} Re8 {[%emt 0:03:17]} 12. e4 {[%emt 0:02:44]} dxe4 {[%emt 0:02:59]} 13. Nxe4 {[%emt 0:00:05]} Nxe4 {[%emt 0:04:44]} 14. Qxe4 {[%emt 0:00:05]} Nf6 {[%emt 0:01:05]} 15. Qe2 {[%emt 0:00:36]} a5 {[%emt 0:03:57]} 16. Rad1 {[%emt 0:06:03]} a4 {[%emt 0:00:56]} 17. bxa4 {[%emt 0:00:12]} Rxa4 {[%emt 0:03:24]} 18. Bc1 {[%emt 0:00:07]} Qa5 {[%emt 0:04:27]} 19. Ne5 {[%emt 0:00:09]} Rxa2 {[%emt 0:03:21]} 20. Qf3 {[%emt 0:00:50]} Ra8 {[%emt 0:07:46]} 21. Qh3 {[%emt 0:03:17]} Bd6 {[%emt 0:05:43]} 22. Rfe1 {[%emt 0:01:05]} Bxe5 {[%emt 0:03:30]} 23. dxe5 {[%emt 0:08:44]} Nh7 {[%emt 0:03:34]} 24. Qg4 {[%emt 0:05:44]} Kh8 {[%emt 0:13:16]} 25. Re3 {[%emt 0:01:30]} Rd8 {[%emt 0:03:03]} 26. Rf1 {[%emt 0:02:09]} Qc5 {[%emt 0:03:54]} 27. Rf3 {[%emt 0:03:56]} Qxe5 {[%emt 0:02:50]} 28. Rxf7 {[%emt 0:00:09]} b5 {[%emt 0:02:29]} 29. Bf4 {[%emt 0:11:39]} Qd4 {[%emt 0:00:51]} 30. h4 {[%emt 0:06:22]} Ra1 {[%emt 0:00:14]} 31. Rxa1 {[%emt 0:01:00]} Qxa1+ {[%emt 0:00:05]} 32. Kh2 {[%emt 0:00:02]} Rf8 {[%emt 0:00:47]} 33. Rd7 {[%emt 0:05:04]} Qf6 {[%emt 0:00:45]} 34. Be3 {[%emt 0:01:33]} Rg8 {[%emt 0:00:31]} 35. f4 {[%emt 0:01:22]} Nf8 {[%emt 0:00:30]} 36. Rc7 {[%emt 0:03:24]} Qg6 {[%emt 0:00:39]} 37. Qxg6 {[%emt 0:01:58]} Nxg6 {[%emt 0:00:06]} 38. c5 {[%emt 0:00:01]} Nxh4 {[%emt 0:00:20]} 39. g4 {[%emt 0:01:27]} Nf3+ {[%emt 0:00:42]} 40. Kg3 {[%emt 0:00:00]} Ne1 {[%emt 0:00:00]} 41. Rxc6 {[%emt 0:00:00]} Nc2 {[%emt 0:00:00]} 42. Bc1 {[%emt 0:00:00]} Nd4 {[%emt 0:00:00]} 43. Rb6 {[%emt 0:00:00]} Ne2+ {[%emt 0:00:00]} 44. Kf3 {[%emt 0:00:00]} Nxc1 {[%emt 0:00:00]} 45. Rxb5 {[%emt 0:00:00]} Na2 {[%emt 0:00:00]} 46. Rb2 {[%emt 0:00:00]} Nc3 {[%emt 0:00:00]} 47. Rc2 {[%emt 0:00:00]} Nb5 {[%emt 0:00:00]} 48. Ke4 {[%emt 0:00:00]} Rc8 {[%emt 0:00:00]} 49. c6 {[%emt 0:00:00]} Kg8 {[%emt 0:00:00]} 50. Ke5 {[%emt 0:00:00]} Na7 {[%emt 0:00:00]} 51. c7 {[%emt 0:00:00]} Nb5 {[%emt 0:00:00]} 52. Kxe6 {[%emt 0:00:00]} Rxc7 {[%emt 0:00:00]} 53. Rd2 {[%emt 0:00:00]} Rc4 {[%emt 0:00:00]} 54. Kf5 {[%emt 0:00:00]} Rd4 {[%emt 0:00:00]} 55. Rb2 {[%emt 0:00:00]} Nc7 {[%emt 0:00:00]} 56. Ke5 {[%emt 0:00:00]} Rc4 {[%emt 0:00:00]} 57. g5 {[%emt 0:00:00]} Rc6 {[%emt 0:00:36]} 58. f5 {[%emt 0:00:00]} hxg5 {[%emt 0:00:44]} 59. Rg2 {[%emt 0:00:00]} Kf7 {[%emt 0:00:38]} 60. Rxg5 {[%emt 0:00:00]} Ne8 {[%emt 0:00:21]} 61. Rg1 {[%emt 0:00:00]} Rc5+ {[%emt 0:00:30]} 62. Kf4 {[%emt 0:00:00]} Kf6 {[%emt 0:00:41]} 63. Rg6+ {[%emt 0:00:00]} Kf7 {[%emt 0:00:38]} 64. Ra6 {[%emt 0:00:00]} Rc1 {[%emt 0:00:42]} 65. Ra7+ {[%emt 0:00:00]} Rc7 {[%emt 0:00:28]} 66. Ra4 {[%emt 0:00:00]} Rd7 {[%emt 0:01:33]} 67. Ra6 {[%emt 0:00:00]} Rd1 {[%emt 0:00:37]} 68. Ke5 {[%emt 0:00:00]} Rd7 {[%emt 0:00:44]} 69. Kf4 {[%emt 0:00:00]} Nf6 {[%emt 0:01:01]} 70. Ra4 {[%emt 0:00:00]} Rd1 {[%emt 0:00:37]} 71. Ra7+ {[%emt 0:00:00]} Nd7 {[%emt 0:00:19]} 72. Kf3 {[%emt 0:00:34]} Kf6 {[%emt 0:01:44]} 73. Ke4 {[%emt 0:01:06]} Nc5+ {[%emt 0:01:17]} 74. Kf4 {[%emt 0:00:39]} Rd4+ {[%emt 0:00:37]} 75. Ke3 {[%emt 0:00:52]} Re4+ {[%emt 0:01:09]} 76. Kf3 {[%emt 0:00:19]} Rd4 {[%emt 0:01:12]} 77. Ke3 {[%emt 0:01:44]} Rg4 {[%emt 0:01:07]} 78. Ra5 {[%emt 0:00:38]} Nd7 {[%emt 0:00:48]} 79. Kf3 {[%emt 0:00:15]} Rg1 {[%emt 0:00:32]} 80. Kf4 {[%emt 0:00:53]} Rf1+ {[%emt 0:00:31]} 81. Ke4 {[%emt 0:00:09]} Kg5 {[%emt 0:00:59]} 82. Ra7 {[%emt 0:03:07]} Re1+ {[%emt 0:00:26]} 83. Kd4 {[%emt 0:02:31]} Re7 {[%emt 0:00:26]} 84. Ra5 {[%emt 0:00:27]} Nf6 {[%emt 0:00:31]} 85. Kd3 {[%emt 0:00:32]} Rd7+ {[%emt 0:00:33]} 86. Ke3 {[%emt 0:00:18]} Rb7 {[%emt 0:00:45]} 87. Kd4 {[%emt 0:00:38]} Rb4+ {[%emt 0:00:26]} 88. Ke5 {[%emt 0:00:41]} Re4+ {[%emt 0:00:15]} 89. Kd6 {[%emt 0:00:04]} Re1 {[%emt 0:00:55]} 90. Kc6 {[%emt 0:03:33]} Rd1 {[%emt 0:00:31]} 91. Ra7 {[%emt 0:00:13]} Rd7 {[%emt 0:00:52]} 92. Ra5 {[%emt 0:00:15]} Rd2 {[%emt 0:00:39]} 93. Ra7 {[%emt 0:00:05]} Nh5 {[%emt 0:00:27]} 94. Ra5 {[%emt 0:01:15]} Kf6 {[%emt 0:00:13]} 95. Rc5 {[%emt 0:01:17]} Rf2 {[%emt 0:00:18]} 96. Kd6 {[%emt 0:00:33]} Rxf5 {[%emt 0:00:16]} 97. Rc1 {[%emt 0:00:19]} Nf4 {[%emt 0:00:56]} 98. Rf1 {[%emt 0:00:28]} g5 {[%emt 0:00:26]} 99. Rg1 {[%emt 0:00:37]} Rd5+ {[%emt 0:00:17]} 100. Kc6 {[%emt 0:00:07]} Rd2 {[%emt 0:00:11]} 101. Kc5 {[%emt 0:00:11]} Kf5 {[%emt 0:00:12]} 102. Kc4 {[%emt 0:00:17]} g4 {[%emt 0:00:16]} 103. Re1 {[%emt 0:00:08]} g3 {[%emt 0:00:23]} 104. Kc3 {[%emt 0:00:11]} Rd8 {[%emt 0:00:17]} 105. Ra1 {[%emt 0:00:30]} g2 {[%emt 0:00:15]} 0-1